fUST/lending_fUST_20250422
["ID","MTS","AMOUNT","RATE_DAILY","PERIOD"]
[358638067,1745326253005,-614.77,0.00023013,2]
[358638068,1745326253018,-500.0,0.00023013,2]
[358638069,1745326253030,-500.0,0.00023013,2]
[358638070,1745326253043,-500.0,0.00023013,2]
[358638071,1745326253056,-3196.32,0.00023013,2]
[358638072,1745326253069,-1833.98,0.00023013,2]
[358638073,1745326253081,-500.0,0.00023013,2]
[358638074,1745326253094,-500.0,0.00023013,2]
[358638075,1745326253107,-500.0,0.00023013,2]
[358638076,1745326253119,-776.79,0.00023013,2]
[358638077,1745326253133,-541.14,0.00023013,2]
[358638078,1745326253145,-651.05,0.00023013,2]
[358638079,1745326253157,-625.73,0.00023013,2]
[358638080,1745326253171,-500.0,0.00023013,2]
[358638081,1745326253184,-191.5905361,0.00023013,2]
[358638082,1745326253199,-1724.08,0.00023013,2]
[358638083,1745326253212,-670.32,0.00023013,2]
[358638084,1745326253225,-500.0,0.00023013,2]
[358638085,1745326253239,-500.0,0.00023013,2]
[358638086,1745326253252,-500.0,0.00023013,2]
[358638087,1745326253266,-500.0,0.00023013,2]
[358638088,1745326253280,-607.57,0.00023013,2]
[358638089,1745326253295,-2097.94,0.00023013,2]
[358638090,1745326253308,-764.74,0.00023013,2]
[358638091,1745326253320,-1151.89,0.00023013,2]
[358638092,1745326253334,-500.0,0.00023013,2]
[358638093,1745326253348,-500.0,0.00023013,2]
[358638094,1745326253362,-6234.21,0.00023013,2]
[358638095,1745326253375,-500.0,0.00023013,2]
[358638096,1745326253388,-607.88,0.00023013,2]
[358638097,1745326253406,-723.74,0.00023013,2]
[358638098,1745326253421,-500.0,0.00023013,2]
[358638099,1745326253435,-500.0,0.00023013,2]
[358638100,1745326253450,-544.62,0.00023013,2]
[358638101,1745326253464,-4330.74,0.00023013,2]
[358638102,1745326253477,-936.86,0.00023013,2]
[358638103,1745326253490,-500.0,0.00023013,2]
[358638104,1745326253504,-500.0,0.00023013,2]
[358638105,1745326253517,-500.0,0.00023013,2]
[358638106,1745326253532,-500.0,0.00023013,2]
[358638107,1745326253546,-500.0,0.00023014,2]
[358638108,1745326253559,-151.53764303,0.00023014,2]
[358638109,1745326253574,-151.0,0.00023014,2]
[358638110,1745326253587,-151.0,0.00023014,2]
[358638111,1745326253603,-1000.0,0.00023122,5]
[358638112,1745326253618,-349.4869454,0.00023233,2]
[358638113,1745326253629,-288.05475448,0.00023259,2]
[358638114,1745326253640,-151.0,0.00023287,2]
[358638115,1745326253831,-151.0,0.00023287,2]
[358638116,1745326253858,-394.077219,0.00023287,2]
[358638117,1745326253868,-500.0,0.00023287,2]
[358638118,1745326253879,-500.0,0.00023287,2]
[358638119,1745326253888,-462.17080485,0.00023287,2]
[358638120,1745326253899,-500.0,0.00023287,2]
[358638121,1745326253910,-500.0,0.00023287,2]
[358638122,1745326253919,-500.0,0.00023287,2]
[358638123,1745326253929,-151.0,0.00023287,7]
[358638124,1745326253941,-500.0,0.00023287,2]
[358638125,1745326253950,-586.53,0.00023287,2]
[358638126,1745326253960,-742.33,0.00023287,2]
[358638127,1745326253970,-500.0,0.00023287,2]
[358638128,1745326253979,-682.4,0.00023287,2]
[358638129,1745326253989,-278.19,0.00023287,2]
[358638130,1745326253999,-500.0,0.00023287,2]
[358638131,1745326254008,-500.0,0.00023287,2]
[358638132,1745326254019,-500.0,0.00023287,2]
[358638133,1745326254028,-757.75,0.00023287,2]
[358638134,1745326254038,-500.0,0.00023287,2]
[358638135,1745326254048,-177.15,0.00023287,2]
[358638136,1745326254059,-1128.02,0.00023287,2]
[358638137,1745326254069,-500.0,0.00023287,2]
[358638138,1745326254079,-500.0,0.00023287,2]
[358638139,1745326254088,-500.0,0.00023287,2]
[358638140,1745326254098,-619.4,0.00023287,2]
[358638141,1745326254107,-541.04,0.00023287,2]
[358638142,1745326254117,-500.0,0.00023287,2]
[358638143,1745326254127,-151.0,0.00023287,7]
[358638144,1745326254137,-500.0,0.00023287,2]
[358638145,1745326254147,-500.0,0.00023287,2]
[358638146,1745326254156,-573.99,0.00023287,2]
[358638147,1745326254167,-609.17,0.00023287,2]
[358638148,1745326254176,-500.0,0.00023287,2]
[358638149,1745326254185,-1582.69,0.00023287,2]
[358638150,1745326254195,-500.0,0.00023287,2]
[358638151,1745326254204,-500.0,0.00023287,2]
[358638152,1745326254214,-500.0,0.00023287,2]
[358638153,1745326254223,-3238.33,0.00023287,2]
[358638154,1745326254233,-592.05,0.00023287,2]
[358638155,1745326254242,-500.0,0.00023287,2]
[358638156,1745326254251,-500.0,0.00023287,2]
[358638157,1745326254261,-500.0,0.00023287,2]
[358638158,1745326254270,-500.0,0.00023287,2]
[358638159,1745326254281,-515.86,0.00023287,2]
[358638160,1745326254290,-500.0,0.00023287,2]
[358638161,1745326254300,-500.0,0.00023287,2]
[358638162,1745326254310,-500.0,0.00023287,2]
[358638163,1745326254320,-500.0,0.00023287,2]
[358638164,1745326254330,-384.20423523,0.00023287,2]
[358638165,1745326254340,-151.0,0.00023287,7]
[358638166,1745326254355,-3110.89,0.00023287,2]
[358638167,1745326254366,-10906.39,0.00023287,2]
[358638168,1745326254376,-683.92,0.00023287,2]
[358638169,1745326254386,-623.22,0.00023287,2]
[358638170,1745326254399,-500.0,0.00023287,2]
[358638171,1745326254408,-500.0,0.00023287,2]
[358638172,1745326254418,-710.02,0.00023287,2]
[358638173,1745326254428,-271.46329901,0.00023287,2]
[358638174,1745326254439,-500.0,0.00023287,2]
[358638175,1745326254449,-500.0,0.00023287,2]
[358638176,1745326254458,-500.0,0.00023287,2]
[358638177,1745326254468,-500.0,0.00023287,2]
[358638178,1745326254483,-555.52,0.00023287,2]
[358638179,1745326254493,-500.0,0.00023287,2]
[358638180,1745326254503,-242.255826,0.00023287,7]
[358638181,1745326254513,-500.0,0.00023287,2]
[358638182,1745326254523,-500.0,0.00023287,2]
[358638183,1745326254533,-512.99,0.00023287,2]
[358638184,1745326254542,-500.0,0.00023287,2]
[358638185,1745326254552,-500.0,0.00023287,2]
[358638186,1745326254562,-500.0,0.00023287,2]
[358638187,1745326254572,-614.77,0.00023287,2]
[358638188,1745326254581,-151.0,0.00023287,7]
[358638189,1745326254591,-500.0,0.00023287,2]
[358638190,1745326254600,-193.16,0.00023287,2]
[358638191,1745326254610,-151.0,0.00023287,7]
[358638192,1745326254620,-500.0,0.00023287,2]
[358638193,1745326254630,-3196.32,0.00023287,2]
[358638194,1745326254640,-1833.98,0.00023287,2]
[358638195,1745326254649,-186.25,0.00023287,2]
[358638196,1745326254659,-195.28,0.00023287,2]
[358638197,1745326254670,-500.0,0.00023287,2]
[358638198,1745326254679,-776.79,0.00023287,2]
[358638199,1745326254689,-541.14,0.00023287,2]
[358638200,1745326254699,-651.05,0.00023287,2]
[358638201,1745326254708,-151.0,0.00023287,7]
[358638202,1745326254718,-625.73,0.00023287,2]
[358638203,1745326254728,-500.0,0.00023287,2]
[358638204,1745326254738,-1724.08,0.00023287,2]
[358638205,1745326254748,-670.32,0.00023287,2]
[358638206,1745326254757,-500.0,0.00023287,2]
[358638207,1745326254766,-500.0,0.00023287,2]
[358638208,1745326254776,-433.65,0.00023287,2]
[358638209,1745326254785,-607.57,0.00023287,2]
[358638210,1745326254795,-412.18666766,0.00023287,2]
[358638211,1745326254805,-2097.94,0.00023287,2]
[358638212,1745326254815,-764.74,0.00023287,2]
[358638213,1745326254824,-121.39390791,0.00023287,2]
[358638214,1745326254972,-1030.49609209,0.00023287,2]
[358638215,1745326254982,-500.0,0.00023287,2]
[358638216,1745326254992,-500.0,0.00023287,2]
[358638217,1745326255001,-6234.21,0.00023287,2]
[358638218,1745326255012,-607.88,0.00023287,2]
[358638219,1745326255021,-7.01390791,0.00023287,2]
[358638220,1745326255033,-462.83688589,0.00023287,2]
[358638221,1745326255045,-253.8892062,0.00023287,2]
[358638222,1745326255055,-344.84256069,0.00023287,2]
[358638223,1745326255064,-500.0,0.00023287,2]
[358638224,1745326255074,-568.12573,0.00023287,7]
[358638225,1745326255083,-544.62,0.00023287,2]
[358638226,1745326255093,-568.12573,0.00023287,7]
[358638227,1745326255102,-4330.74,0.00023287,2]
[358638228,1745326255112,-936.86,0.00023287,2]
[358638229,1745326255121,-500.0,0.00023287,2]
[358638230,1745326255131,-500.0,0.00023287,2]
[358638231,1745326255140,-151.0,0.00023287,7]
[358638232,1745326255150,-500.0,0.00023287,2]
[358638233,1745326255160,-2783.37319947,0.00023383,2]
[358638234,1745326255170,-2000.0,0.000234,2]
[358638235,1745326255180,-1517.78155069,0.00023417,4]
[358638236,1745326255189,-151.0,0.00023436,7]
[358638237,1745326255198,-722.657589,0.00023452,2]
[358638238,1745326255207,-558.48675979,0.0002347,2]
[358638239,1745326255217,-288.05475449,0.00023495,2]
[358638240,1745326255226,-544.0,0.00023546,2]
[358638241,1745326255235,-708.0,0.00023546,2]
[358638242,1745326255246,-2245.0,0.00023546,2]
[358638243,1745326255256,-189.989,0.00023546,2]
[358638244,1745326255265,-403.0,0.00023546,2]
[358638245,1745326255275,-439.54,0.00023561,4]
[358638246,1745326255285,-151.0,0.00023561,7]
[358638247,1745326255295,-500.0,0.00023561,2]
[358638248,1745326255305,-151.0,0.00023561,7]
[358638249,1745326255314,-151.0,0.00023561,7]
[358638250,1745326255324,-500.0,0.00023561,2]
[358638251,1745326255334,-151.0,0.00023561,7]
[358638252,1745326255343,-608.54326349,0.00023561,2]
[358638253,1745326255353,-500.0,0.00023561,2]
[358638254,1745326255362,-192.31,0.00023561,2]
[358638255,1745326255372,-151.0,0.00023561,7]
[358638256,1745326255381,-500.0,0.00023561,2]
[358638257,1745326255391,-586.53,0.00023561,2]
[358638258,1745326255403,-742.33,0.00023561,2]
[358638259,1745326255412,-500.0,0.00023561,2]
[358638260,1745326255422,-682.4,0.00023561,2]
[358638261,1745326255433,-151.0,0.00023561,7]
[358638262,1745326255443,-151.0,0.00023561,7]
[358638263,1745326255452,-500.0,0.00023561,2]
[358638264,1745326255462,-500.0,0.00023561,2]
[358638265,1745326255473,-757.75,0.00023561,2]
[358638266,1745326255482,-500.0,0.00023561,2]
[358638267,1745326255492,-1128.02,0.00023561,2]
[358638268,1745326255502,-500.0,0.00023561,2]
[358638269,1745326255513,-292.55469591,0.00023561,2]
[358638270,1745326255523,-500.0,0.00023561,2]
[358638271,1745326255533,-619.4,0.00023561,2]
[358638272,1745326255542,-385.68042639,0.00023561,2]
[358638273,1745326255552,-509.55677359,0.00023561,2]
[358638274,1745326255561,-500.0,0.00023561,2]
[358638275,1745326255571,-573.99,0.00023561,2]
[358638276,1745326255580,-609.17,0.00023561,2]
[358638277,1745326255590,-500.0,0.00023561,2]
[358638278,1745326255600,-499.9999,0.00023561,2]
[358638279,1745326255610,-660.0963451,0.00023561,2]
[358638280,1745326255624,-922.5936549,0.00023561,2]
[358638281,1745326255633,-500.0,0.00023561,2]
[358638282,1745326255643,-600.01,0.00023561,2]
[358638283,1745326255653,-500.0,0.00023561,2]
[358638284,1745326255663,-3238.33,0.00023561,2]
[358638285,1745326255673,-592.05,0.00023561,2]
[358638286,1745326255683,-500.0,0.00023561,2]
[358638287,1745326255694,-500.0,0.00023561,2]
[358638288,1745326255703,-500.0,0.00023561,2]
[358638289,1745326255715,-500.0,0.00023561,2]
[358638290,1745326255725,-515.86,0.00023561,2]
[358638291,1745326255734,-500.0,0.00023561,2]
[358638292,1745326255745,-500.0,0.00023561,2]
[358638293,1745326255755,-500.0,0.00023561,2]
[358638294,1745326255766,-500.0,0.00023561,2]
[358638295,1745326255777,-3110.89,0.00023561,2]
[358638296,1745326255788,-10906.39,0.00023561,2]
[358638297,1745326255798,-683.92,0.00023561,2]
[358638298,1745326255807,-623.22,0.00023561,2]
[358638299,1745326255817,-500.0,0.00023561,2]
[358638300,1745326255826,-500.0,0.00023561,2]
[358638301,1745326255836,-500.0,0.00023561,2]
[358638302,1745326255846,-500.0,0.00023561,2]
[358638303,1745326255855,-500.0,0.00023561,2]
[358638304,1745326255865,-500.0,0.00023561,2]
[358638305,1745326255874,-500.0,0.00023561,2]
[358638306,1745326255884,-500.0,0.00023561,2]
[358638307,1745326255894,-500.0,0.00023561,2]
[358638308,1745326255906,-500.0,0.00023561,2]
[358638309,1745326255917,-500.0,0.00023561,2]
[358638310,1745326255926,-500.0,0.00023561,2]
[358638311,1745326255936,-500.0,0.00023561,2]
[358638312,1745326255947,-500.0,0.00023561,2]
[358638313,1745326255958,-574.37530812,0.00023561,2]
[358638314,1745326255969,-710.02,0.00023561,2]
[358638315,1745326255979,-500.0,0.00023561,2]
[358638316,1745326255990,-505.87412306,0.00023561,2]
[358638317,1745326256000,-500.0,0.00023561,2]
[358638318,1745326256010,-151.0,0.00023561,7]
[358638319,1745326256020,-500.0,0.00023561,2]
[358638320,1745326256030,-555.52,0.00023561,2]
[358638321,1745326256040,-189.49,0.00023561,2]
[358638322,1745326256050,-500.0,0.00023561,2]
[358638323,1745326256060,-500.0,0.00023561,2]
[358638324,1745326256069,-500.0,0.00023561,2]
[358638325,1745326256078,-512.99,0.00023561,2]
[358638326,1745326256089,-500.0,0.00023561,2]
[358638327,1745326256099,-500.0,0.00023561,2]
[358638328,1745326256109,-614.77,0.00023561,2]
[358638329,1745326256119,-500.0,0.00023561,2]
[358638330,1745326256128,-500.0,0.00023561,2]
[358638331,1745326256138,-3196.32,0.00023561,2]
[358638332,1745326256148,-1833.98,0.00023561,2]
[358638333,1745326256157,-500.0,0.00023561,2]
[358638334,1745326256168,-776.79,0.00023561,2]
[358638335,1745326256179,-541.14,0.00023561,2]
[358638336,1745326256188,-651.05,0.00023561,2]
[358638337,1745326256198,-625.73,0.00023561,2]
[358638338,1745326256208,-500.0,0.00023561,2]
[358638339,1745326256220,-1724.08,0.00023561,2]
[358638340,1745326256231,-670.32,0.00023561,2]
[358638341,1745326256243,-287.61677849,0.00023561,2]
[358638342,1745326256253,-500.0,0.00023561,2]
[358638343,1745326256262,-607.57,0.00023561,2]
[358638344,1745326256272,-2097.94,0.00023561,2]
[358638345,1745326256282,-764.74,0.00023561,2]
[358638346,1745326256292,-1151.89,0.00023561,2]
[358638347,1745326256302,-500.0,0.00023561,2]
[358638348,1745326256312,-6234.21,0.00023561,2]
[358638349,1745326256321,-607.88,0.00023561,2]
[358638350,1745326256331,-706.90342082,0.00023561,2]
[358638351,1745326256511,-16.83657918,0.00023561,2]
[358638352,1745326256690,-300.46191574,0.00023561,2]
[358638353,1745326256778,-1126.18778728,0.00021817,2]
[358638354,1745326256788,-4525.40237286,0.00021917,2]
[358638355,1745326256798,-500.0,0.00021917,2]
[358638356,1745326256808,-500.0,0.00021917,2]
[358638357,1745326256818,-500.0,0.00022191,2]
[358638358,1745326256829,-244.15808426,0.00023561,2]
[358638359,1745326256839,-949.85940007,0.00023561,2]
[358638362,1745326731308,-153.90216243,0.00021187,2]
[358638363,1745326731335,-202.801863,0.00021422,2]
[358638364,1745326731358,-255.0385346,0.00021616,2]
[358638365,1745326731382,-487.98,0.00021616,2]
[358638366,1745326731411,-494.36728288,0.00021616,2]
[358638367,1745326731434,-9941.91015709,0.00021617,2]
[358638387,1745327075864,664625.12358831,0.0002,2]
[358638392,1745327096506,508.0,0.0002001,2]
[358638492,1745327277445,-10000.0,0.00045471,30]
[358638493,1745327277473,-2000.0,0.00045471,120]
[358638494,1745327277500,-5515.93098446,0.00045471,120]
[358638495,1745327277526,-199999.0,0.00045471,30]
[358638496,1745327277553,-333.93138632,0.00045471,30]
[358638497,1745327277581,-500.0,0.00045471,60]
[358638498,1745327277607,-500.0,0.00045471,60]
[358638499,1745327277636,-500.0,0.00045471,60]
[358638500,1745327277663,-500.0,0.00045471,60]
[358638501,1745327277691,-500.0,0.00045471,60]
[358638502,1745327277720,-500.0,0.00045471,60]
[358638503,1745327277747,-500.0,0.00045471,60]
[358638504,1745327277774,-500.0,0.00045471,60]
[358638505,1745327277802,-500.0,0.00045471,60]
[358638506,1745327277828,-287.14250656,0.00045471,60]
[358638507,1745327277855,-500.0,0.00045471,60]
[358638508,1745327277883,-500.0,0.00045471,60]
[358638509,1745327277910,-500.0,0.00045471,60]
[358638510,1745327277938,-500.0,0.00045471,60]
[358638511,1745327277964,-500.0,0.00045471,60]
[358638512,1745327277991,-500.0,0.00045471,60]
[358638513,1745327278018,-500.0,0.00045471,60]
[358638514,1745327278044,-500.0,0.00045471,60]
[358638515,1745327278070,-500.0,0.00045471,60]
[358638516,1745327278095,-500.0,0.00045471,60]
[358638517,1745327278123,-500.0,0.00045471,60]
[358638518,1745327278150,-248.64431002,0.00045471,60]
[358638519,1745327278175,-336.25412022,0.00045471,120]
[358638520,1745327278200,-192.1464511,0.00045471,120]
[358638521,1745327278225,-471.87333729,0.00045471,120]
[358638522,1745327278250,-838.46144198,0.00045471,60]
[358638523,1745327278278,-890.69914724,0.00045471,31]
[358638524,1745327278303,-393.10060742,0.00045471,30]
[358638525,1745327278329,-405.09254279,0.00045471,120]
[358638526,1745327278354,-734.3416045,0.00045471,60]
[358638527,1745327278392,-943.9715276,0.00045471,30]
[358638528,1745327278426,-342.45507,0.00045471,120]
[358638529,1745327278456,-1130.76286079,0.00045471,120]
[358638530,1745327278483,-176.50832058,0.00045471,30]
[358638531,1745327278510,-602.98322703,0.00045471,120]
[358638532,1745327278537,-507.87404863,0.00045471,120]
[358638533,1745327278565,-182.38902358,0.00045471,30]
[358638534,1745327278592,-322.13268145,0.00045471,120]
[358638536,1745327278618,-270.0,0.00045471,31]
[358638538,1745327278645,-270.0,0.00045471,31]
[358638540,1745327278670,-270.0,0.00045471,31]
[358638542,1745327278697,-270.0,0.00045471,31]
[358638543,1745327278728,-2945.20892177,0.00045471,120]
[358638544,1745327278755,-367.0,0.00045471,120]
[358638545,1745327278784,-385.0,0.00045471,120]
[358638546,1745327278811,-156.0,0.00045471,30]
[358638547,1745327278837,-4269.0,0.00045471,30]
[358638548,1745327278865,-1268.26649376,0.00045471,60]
[358638549,1745327278892,-3599.12227692,0.00045471,60]
[358638550,1745327278918,-161.94982483,0.00045471,120]
[358638551,1745327278944,-1867.0,0.00045471,120]
[358638552,1745327278972,-1000.0,0.00045471,120]
[358638553,1745327278997,-1000.0,0.00045471,120]
[358638554,1745327279023,-500.0,0.00045471,120]
[358638555,1745327279051,-985.0,0.00045471,120]
[358638556,1745327279076,-1071.83427055,0.00045471,120]
[358638557,1745327279110,-500.0,0.00045471,60]
[358638558,1745327279137,-500.0,0.00045471,60]
[358638559,1745327279349,-447.83183873,0.00045471,60]
[358638560,1745327279378,-354.09943847,0.00045471,30]
[358638561,1745327279405,-1056.20436,0.00045471,120]
[358638562,1745327279431,-3081.927664,0.00045471,35]
[358638563,1745327279456,-200.0,0.00045471,30]
[358638564,1745327279482,-200.0,0.00045471,30]
[358638565,1745327279507,-200.0,0.00045471,30]
[358638566,1745327279532,-200.0,0.00045471,30]
[358638567,1745327279558,-200.0,0.00045471,30]
[358638568,1745327279583,-250.9,0.00045471,30]
[358638569,1745327279609,-22405.9371484,0.00045471,120]
[358638570,1745327279636,-142253.47465584,0.00045471,120]
[358638571,1745327279661,-22990.61465477,0.00045471,120]
[358638572,1745327279687,-21891.97378544,0.00045471,120]
[358638573,1745327279717,-30000.0,0.00045471,120]
[358638574,1745327279742,-1000.0,0.00045471,120]
[358638575,1745327279770,-1000.0,0.00045471,120]
[358638576,1745327279796,-385248.11390985,0.00045471,60]
[358638577,1745327279823,-1073.4938924,0.00045471,40]
[358638578,1745327279850,-539.34974668,0.00045471,120]
[358638579,1745327279877,-5703.33435592,0.00045471,90]
[358638580,1745327279906,-1000.0,0.00045471,120]
[358638581,1745327279932,-191.66756211,0.00045471,30]
[358638582,1745327286456,-308.33243789,0.00045471,30]
[358638583,1745327286483,-500.0,0.00045471,30]
[358638584,1745327286510,-500.0,0.00045471,30]
[358638589,1745327405804,155.22421689,0.00045432,35]
[358638590,1745327405877,500.0,0.00045432,120]
[358638591,1745327406551,500.0,0.00045432,120]
[358638592,1745327407324,151.0,0.00045432,120]
[358638593,1745327407713,200.0,0.00045432,120]
[358638594,1745327408348,207.4,0.00045432,120]
[358638595,1745327408988,215.0738,0.00045432,120]
[358638596,1745327409640,223.0315306,0.00045432,120]
[358638597,1745327410357,231.28369723,0.00045432,120]
[358638598,1745327411060,239.84119403,0.00045432,120]
[358638599,1745327411716,248.71531821,0.00045432,120]
[358638600,1745327412412,257.91778498,0.00045432,120]
[358638601,1745327413072,267.46074303,0.00045432,120]
[358638602,1745327413743,277.35679052,0.00045432,120]
[358638603,1745327414422,287.61899177,0.00045432,120]
[358638604,1745327415121,298.26089446,0.00045432,120]
[358638605,1745327415742,309.29654756,0.00045432,120]
[358638606,1745327416431,309.29654756,0.00045432,120]
[358638652,1745327431868,-300.0,0.00020841,2]
[358638653,1745327431879,-11535.8412988,0.00020842,2]
[358638655,1745327431890,-451.0,0.00021,2]
[358638657,1745327431900,-11343.88867725,0.00021617,2]
[358638658,1745327436571,500.0,0.00045432,30]
[358638689,1745327438128,-4539.634302,0.00021617,2]
[358638690,1745327438184,-344174.56686366,0.00021617,2]
[358638691,1745327438194,-900.9502298,0.00021817,2]
[358638692,1745327438204,-447.21144584,0.00021917,2]
[358638693,1745327438214,-500.0,0.00021917,2]
[358638694,1745327438225,-500.0,0.00021917,2]
[358638695,1745327438234,-500.0,0.00021917,2]
[358638696,1745327438244,-500.0,0.00021917,2]
[358638697,1745327438254,-500.0,0.00021917,2]
[358638698,1745327438265,-500.0,0.00021917,2]
[358638699,1745327438276,-500.0,0.00021917,2]
[358638700,1745327438286,-279.98879875,0.00021917,2]
[358638701,1745327438297,-387.68245617,0.00021917,2]
[358638702,1745327438307,-500.0,0.00021917,2]
[358638703,1745327438316,-500.0,0.00021917,2]
[358638704,1745327438326,-500.0,0.00021917,2]
[358638705,1745327438336,-500.0,0.00021917,2]
[358638706,1745327438345,-500.0,0.00021917,2]
[358638707,1745327438355,-500.0,0.00021917,2]
[358638708,1745327438365,-500.0,0.00021917,2]
[358638709,1745327438375,-501.09037754,0.00021917,2]
[358638710,1745327438385,-502.8591018,0.00021917,2]
[358638711,1745327438395,-504.59063616,0.00021917,2]
[358638712,1745327438405,-531.60881479,0.00021917,2]
[358638713,1745327438415,-500.0,0.00021917,2]
[358638714,1745327438425,-505.33011739,0.00021917,2]
[358638715,1745327438434,-500.0,0.00021917,2]
[358638716,1745327438444,-500.0,0.00021917,2]
[358638717,1745327438454,-500.0,0.00021917,2]
[358638718,1745327438464,-500.0,0.00021917,2]
[358638719,1745327438474,-500.0,0.00021917,2]
[358638720,1745327438485,-500.0,0.00021917,2]
[358638721,1745327438494,-500.0,0.00021917,2]
[358638722,1745327438505,-500.0,0.00021917,2]
[358638723,1745327438515,-500.0,0.00021917,2]
[358638724,1745327438525,-694.6,0.00021917,2]
[358638725,1745327438534,-500.0,0.00021917,2]
[358638726,1745327438544,-519.34569193,0.00021917,2]
[358638727,1745327438554,-500.0,0.00021917,2]
[358638728,1745327438564,-500.0,0.00021917,2]
[358638729,1745327438574,-500.0,0.00021917,2]
[358638730,1745327438584,-532.79272639,0.00021917,2]
[358638731,1745327438594,-500.0,0.00021917,2]
[358638732,1745327438604,-457.02890223,0.00021917,2]
[358638733,1745327438616,-221.05642372,0.00021917,2]
[358638734,1745327438626,-511.76396241,0.00021917,2]
[358638735,1745327438636,-500.0,0.00021917,2]
[358638736,1745327438646,-500.0,0.00021917,2]
[358638737,1745327438655,-500.0,0.00021917,2]
[358638738,1745327438666,-436.69385746,0.00021917,2]
[358638739,1745327438676,-505.82770341,0.00021917,2]
[358638740,1745327438686,-514.96835971,0.00021917,2]
[358638741,1745327438695,-516.49854394,0.00021917,2]
[358638742,1745327438706,-500.0,0.00021917,2]
[358638743,1745327438715,-506.67902245,0.00021917,2]
[358638744,1745327438726,-500.0,0.00021917,2]
[358638745,1745327438736,-502.87730235,0.00021917,2]
[358638746,1745327438747,-500.0,0.00021917,2]
[358638747,1745327438757,-509.31683203,0.00021917,2]
[358638748,1745327438768,-500.0,0.00021917,2]
[358638749,1745327438778,-500.0,0.00021917,2]
[358638750,1745327438787,-511.80561492,0.00021917,2]
[358638751,1745327438798,-500.0,0.00021917,2]
[358638752,1745327438808,-500.0,0.00021917,2]
[358638753,1745327438818,-500.0,0.00021917,2]
[358638754,1745327438832,-502.78677908,0.00021917,2]
[358638755,1745327438842,-500.0,0.00021917,2]
[358638756,1745327438853,-500.0,0.00021917,2]
[358638757,1745327438863,-500.0,0.00021917,2]
[358638758,1745327438875,-510.71071946,0.00021917,2]
[358638759,1745327438886,-500.0,0.00021917,2]
[358638760,1745327438896,-500.0,0.00021917,2]
[358638761,1745327438907,-500.0,0.00021917,2]
[358638762,1745327438917,-500.0,0.00021917,2]
[358638763,1745327438927,-500.98956056,0.00021917,2]
[358638764,1745327438937,-500.0,0.00021917,2]
[358638765,1745327438947,-500.0,0.00021917,2]
[358638766,1745327438956,-500.0,0.00021917,2]
[358638767,1745327438966,-500.0,0.00021917,2]
[358638768,1745327438976,-500.0,0.00021917,2]
[358638769,1745327438986,-500.0,0.00021917,2]
[358638770,1745327438995,-500.0,0.00021917,2]
[358638771,1745327439005,-584.89,0.00021917,2]
[358638772,1745327439017,-500.0,0.00021917,2]
[358638773,1745327439026,-500.0,0.00021917,2]
[358638774,1745327439035,-500.0,0.00021917,2]
[358638775,1745327439046,-500.0,0.00021917,2]